Cogmind - Beta 13 @@@ ROGUE MODE // 2024.04.30 @ 22:23:52 Player: Gold Spoon Result: Self-destructed Performance ------------- Evolutions (2) 1000 Regions Visited (5) 1000 Robots Destroyed (26) 130 Value Destroyed (437) 437 Prototype IDs (27) 540 Alien Tech Used (0) 0 Bonus (300) 300 TOTAL SCORE: 3407 Bonus ------- Aligned with FarCom 300 Cogmind --------- Core Integrity 458/550 Matter 251/300 Energy 100/100 System Corruption 0% Temperature Cool (0) Movement Hovering (120) Ox1 Location -8/Materials Parts ------- > --- POWER (1) -------- (None) > --- PROPULSION (3) --- Improved Hover Unit > --- UTILITY (5) ------ Medium Storage Unit Signal Interpreter Hacking Suite Hacking Suite > --- WEAPON (2) ------- (None) > --- INVENTORY (10) --- Deuterium Engine Deuterium Engine Deuterium Engine Hover Unit Improved Hover Unit Heat Sink Experimental Sensor Array Light Armor Plating Peak State ------------ > --- POWER ------------ Light Nuclear Core > --- PROPULSION ------- Improved Hover Unit > --- UTILITY ---------- Medium Storage Unit Signal Interpreter Hacking Suite Hacking Suite > --- WEAPON ----------- Heavy Assault Rifle Field Lobotomy Kit > --- INVENTORY -------- Deuterium Engine Deuterium Engine Deuterium Engine Hover Unit Improved Hover Unit Heat Sink Experimental Sensor Array Light Armor Plating [Rating: 27] Favorites ----------- Power Ion Engine Engine Ion Engine Power Core Light Nuclear Core Propulsion Improved Hover Unit Treads Light Treads Wheel Wheel Hover Unit Improved Hover Unit Utility Hacking Suite Device Heat Sink Storage Medium Storage Unit Processor Signal Interpreter Hackware Hacking Suite Protection Light Armor Plating Weapon Assault Rifle Ballistic Gun Assault Rifle Special Weapon Field Lobotomy Kit Build | -11 -10 -10 -10 -9 -8 ------- Run | Yrd Mat Min Exi Min Mat Slots Evolved 4 | . . . . . 4 Power . | . . . . . . Propulsion 1 | . . . . . 1 Utility 3 | . . . . . 3 Weapon . | . . . . . . Parts Attached 35 | 6 11 . . . 18 Power 4 | 1 1 . . . 2 Engine 3 | 1 1 . . . 1 Core 1 | . . . . . 1 Reactor . | . . . . . . Propulsion 11 | 2 5 . . . 4 Treads 2 | 2 . . . . . Leg . | . . . . . . Wheel 2 | . 2 . . . . Hover 7 | . 3 . . . 4 Flight . | . . . . . . Utility 8 | 1 2 . . . 5 Device 1 | . . . . . 1 Storage 2 | 1 1 . . . . Processor 1 | . . . . . 1 Hackware 2 | . 1 . . . 1 Protection 2 | . . . . . 2 Artifact . | . . . . . . Weapon 12 | 2 3 . . . 7 Energy Gun . | . . . . . . Energy Cannon . | . . . . . . Ballistic Gun 11 | 2 3 . . . 6 Ballistic Cannon . | . . . . . . Launcher . | . . . . . . Special Weapon 1 | . . . . . 1 Impact Weapon . | . . . . . . Slashing Weapon . | . . . . . . Piercing Weapon . | . . . . . . Special Melee Weapon . | . . . . . . Unidentified Prototypes . | . . . . . . Parts Lost 6 | . 5 . . . 1 Power 1 | . 1 . . . . Propulsion 3 | . 2 . . . 1 Utility . | . . . . . . Weapon 2 | . 2 . . . . Highest Loss Streak 5 | . 5 . . . 1 To Critical Strikes . | . . . . . . Average Slot Usage (%) 90 | . 85 100 100 100 90 Engine 8 | . 9 14 14 14 4 Core 1 | . . . . . 4 Treads 2 | . 7 . . . . Wheel 10 | . 8 28 28 28 4 Hover 10 | . 7 . . . 20 Storage 12 | . 14 14 14 14 9 Processor 3 | . . . . . 9 Hackware 14 | . 11 14 14 14 18 Protection 1 | . . . . . 3 Ballistic Gun 22 | . 25 28 28 28 17 Naked Turns . | . . . . . . Heaviest Build 28 | 14 19 19 19 19 28 Greatest Support 40 | 40 40 26 26 26 26 Greatest Overweight (x) 3 | . 2 . . . 3 Average Overweight (x) . | . . . . . . Largest Inventory Capacity 10 | 8 10 10 10 10 10 Average Capacity 9 | 7 8 10 10 10 10 Most Carried 10 | 5 8 9 10 10 10 Average Carried 7 | 1 5 8 9 10 9 Final Capacity 10 | 8 10 10 10 10 10 Final Carried 10 | 1 8 9 10 10 8 Class Distribution -------------------- 63% | Mutant 28% | Hacker-Mutant 7% | Scavenger-Mutant Dominant Class ---------------- Mutant | -10/Materials Mutant | -10/Mines Mutant | -10/Exiles Mutant | -9/Mines Hacker-Mutant | -8/Materials Resources | -11 -10 -10 -10 -9 -8 ----------- Run | Yrd Mat Min Exi Min Mat Matter Collected 921 | 255 319 56 . 18 273 Remotely . | . . . . . . Salvage Created 704 | . 410 90 . 52 152 Parts 63 | . 38 4 . 7 14 Haulers Intercepted 1 | . . . . . 1 Recyclers Shooed 1 | . 1 . . . . Parts Field Recycled . | . . . . . . Retrieved Matter . | . . . . . . Parts Self-Destructed . | . . . . . . Prevented . | . . . . . . Kills | -11 -10 -10 -10 -9 -8 ------- Run | Yrd Mat Min Exi Min Mat Combat Hostiles Destroyed 12 | . 6 2 . 3 1 Guns 12 | . 6 2 . 3 1 Classes Destroyed 9 | . 7 . . . 2 Worker 4 | . 4 . . . . Builder 2 | . 2 . . . . Hauler 1 | . . . . . 1 Recycler 1 | . 1 . . . . Operator 2 | . 2 . . . . Watcher 4 | . 2 . . . 2 Swarmer 6 | . 3 . . 3 . Grunt 5 | . 3 2 . . . Sentry 1 | . . . . . 1 Best Kill Streak 4 | . 4 2 . 3 1 Combat Bots Only 3 | . 3 2 . 3 1 Max Kills in Single Turn 1 | . 1 1 . 1 1 Gunslinging . | . . . . . . Exploded . | . . . . . . Melee . | . . . . . . Uniques/NPCs Destroyed . | . . . . . . Combat | -11 -10 -10 -10 -9 -8 -------- Run | Yrd Mat Min Exi Min Mat Hostile Shots Fired 96 | . 62 7 . 6 21 Missed 17 | . 9 1 . . 7 Damage Taken 1016 | . 618 77 . 48 273 Core 295 | . 174 29 . . 92 Absorbed by Shields . | . . . . . . Core Remaining (%) 59 | 100 . . . 18 . Volleys Fired 78 | . 42 6 . 3 27 Largest 2 | . 2 2 . 2 2 Hottest 46 | . 40 40 . 40 46 Shots Fired 152 | . 83 12 . 6 51 Gun 150 | . 83 12 . 6 49 Cannon . | . . . . . . Launcher . | . . . . . . Special 2 | . . . . . 2 Kinetic 150 | . 83 12 . 6 49 Thermal . | . . . . . . Explosive . | . . . . . . Electromagnetic . | . . . . . . Robot Hit Streak 9 | . 9 6 . 1 4 Robot Miss Streak 6 | . 3 1 . 5 6 Penetration Max . | . . . . . . Secondary Targets 1 | . 1 . . . . Max Gunslinging Chain 1 | . 1 . . . . Shots Hit Robots 89 | . 55 9 . 1 24 Core Hits 40 | . 22 5 . 3 10 Critical Kills 1 | . 1 . . . . Critical Parts Destroyed . | . . . . . . Critical Strikes 1 | . 1 . . . . Destroy 1 | . 1 . . . . Melee Attacks . | . . . . . . Impact . | . . . . . . Slashing . | . . . . . . Piercing . | . . . . . . Sneak Attacks . | . . . . . . Combat Hostiles . | . . . . . . Follow-up Attacks . | . . . . . . Damage Inflicted 1203 | . 719 116 . 35 333 Guns 1203 | . 719 116 . 35 333 Cannons . | . . . . . . Explosions . | . . . . . . Melee . | . . . . . . Ramming . | . . . . . . Kinetic 1203 | . 719 116 . 35 333 Thermal . | . . . . . . Explosive . | . . . . . . Electromagnetic . | . . . . . . Impact . | . . . . . . Slashing . | . . . . . . Piercing . | . . . . . . Highest Corruption . | . . . . . . Average Corruption . | . . . . . . Corruption Purged . | . . . . . . Corruption Blocked . | . . . . . . Overload Shots . | . . . . . . Overflow Damage . | . . . . . . Projectiles . | . . . . . . Explosions . | . . . . . . Melee . | . . . . . . Knockbacks . | . . . . . . Impact . | . . . . . . Kinetic . | . . . . . . Secondary . | . . . . . . Self-Inflicted Damage . | . . . . . . Shots . | . . . . . . Rammed . | . . . . . . Targets Rammed . | . . . . . . Kicked . | . . . . . . Crushed . | . . . . . . Highest Temperature 33 | . 33 2 . . . Average Temperature 12 | . 13 2 . . . Received Heat Transfer 378 | . 318 42 . . 18 Siege Activations . | . . . . . . Robots Corrupted . | . . . . . . Combat Hostiles . | . . . . . . Parts Fried . | . . . . . . Impact Corruptions . | . . . . . . Robots Melted . | . . . . . . Combat Hostiles . | . . . . . . Parts Melted . | . . . . . . Heat Transferred . | . . . . . . Parts Sabotaged . | . . . . . . Parts Stolen . | . . . . . . Parts Stripped . | . . . . . . Power Chain Reactions . | . . . . . . Alert | -11 -10 -10 -10 -9 -8 ------- Run | Yrd Mat Min Exi Min Mat Peak Influence 187 | . 187 55 . 85 137 Initial 33 | . . 5 . . 33 Average 58 | . 66 24 . 83 48 Maximum Alert Level . | . . . . . . Low Security (%) 100 | 100 100 100 . 100 100 Level 1 . | . . . . . . Level 2 . | . . . . . . Level 3 . | . . . . . . Level 4 . | . . . . . . Level 5 . | . . . . . . High Security . | . . . . . . Max Security . | . . . . . . Squads Dispatched 5 | . 1 . . . 4 Investigation . | . . . . . . Extermination . | . . . . . . Reinforcement 5 | . 1 . . . 4 Assault . | . . . . . . Garrison . | . . . . . . Intercept . | . . . . . . Searches Triggered . | . . . . . . Construction Impeded . | . . . . . . Haulers Reinforced . | . . . . . . Active Scanning Responses . | . . . . . . Cargo Convoy Interrupts . | . . . . . . Stealth | -11 -10 -10 -10 -9 -8 --------- Run | Yrd Mat Min Exi Min Mat Distress Signals 2 | . 1 . . . 1 Communications Jammed . | . . . . . . Distress Signals . | . . . . . . Times Spotted 37 | . 15 2 . 2 18 Peak Tracking Total 8 | . 4 2 . 2 8 Tactical Retreats 4 | . 2 . . . 2 Traps | -11 -10 -10 -10 -9 -8 ------- Run | Yrd Mat Min Exi Min Mat Traps Triggered 1 | . 1 . . . . Indirectly . | . . . . . . Trap Hack Attempts . | . . . . . . Triggered . | . . . . . . Disarmed . | . . . . . . Reprogrammed 1 | . 1 . . . . Reused . | . . . . . . Traps Extracted . | . . . . . . Installed . | . . . . . . Triggered . | . . . . . . Machines | -11 -10 -10 -10 -9 -8 ---------- Run | Yrd Mat Min Exi Min Mat Machines Disabled . | . . . . . . Max in Single Turn . | . . . . . . Machines Repaired . | . . . . . . Machines Dismantled . | . . . . . . Machines Sabotaged . | . . . . . . Overloaded Fab Kills . | . . . . . . Hacking | -11 -10 -10 -10 -9 -8 --------- Run | Yrd Mat Min Exi Min Mat Machines Accessed 10 | . 6 . 1 . 3 Terminals 9 | . 6 . . . 3 Fabricators . | . . . . . . Repair Stations . | . . . . . . Recycling Units . | . . . . . . Scanalyzers . | . . . . . . Garrison Access . | . . . . . . Total Hacks 22 | . 16 . 1 . 5 Successful 13 | . 7 . 1 . 5 Failed 9 | . 9 . . . . Catastrophic 1 | . 1 . . . . Database Lockouts . | . . . . . . Manual 3 | . 1 . 1 . 1 Terminals 21 | . 16 . . . 5 Fabricators . | . . . . . . Repair Stations . | . . . . . . Recycling Units . | . . . . . . Scanalyzers . | . . . . . . Garrison Access . | . . . . . . Terminal Hacks 13 | . 7 . 1 . 5 Prototype ID Bank 2 | . 2 . . . . Level Access Points 1 | . . . . . 1 Branch Access Points 1 | . . . . . 1 Alert Level 1 | . . . . . 1 Unreport Threat 1 | . 1 . . . . Locate Traps 4 | . 3 . . . 1 Reprogram Traps 1 | . 1 . . . . Registered Prototypes 1 | . . . . . 1 Derelict Proto ID Bank 1 | . . . 1 . . Fabricator Hacks . | . . . . . . Repair Station Hacks . | . . . . . . Recycling Unit Hacks . | . . . . . . Scanalyzer . | . . . . . . Garrison Access Hacks . | . . . . . . Unauthorized Hacks . | . . . . . . Terminals . | . . . . . . Fabricators . | . . . . . . Repair Stations . | . . . . . . Recycling Units . | . . . . . . Scanalyzers . | . . . . . . Garrison Access . | . . . . . . Data Cores Recovered 1 | . 1 . . . . Used . | . . . . . . Hacking Detections 6 | . 5 . . . 1 Full Trace Events . | . . . . . . Feedback Events . | . . . . . . Feedback Blocked . | . . . . . . Robot Schematics Acquired . | . . . . . . Robots Built . | . . . . . . Authchips . | . . . . . . Time . | . . . . . . Total Robot Build Rating . | . . . . . . Part Schematics Acquired . | . . . . . . Parts Built . | . . . . . . Authchips . | . . . . . . Time . | . . . . . . Total Part Build Rating . | . . . . . . Parts Repaired . | . . . . . . Time . | . . . . . . Parts Recycled . | . . . . . . Recycled Matter . | . . . . . . Retrieved Matter . | . . . . . . Retrieved Components . | . . . . . . Parts Scanalyzed . | . . . . . . Part Schematics Acquired . | . . . . . . Parts Damaged . | . . . . . . Bothacking | -11 -10 -10 -10 -9 -8 ------------ Run | Yrd Mat Min Exi Min Mat Used RIF Installer . | . . . . . . Robots Hacked . | . . . . . . Non-combat . | . . . . . . Combat . | . . . . . . Robot Hacks Applied . | . . . . . . Relay Couplers Released . | . . . . . . Fabnet Peak Effective % . | . . . . . . Robots Rewired . | . . . . . . Allies Hacked . | . . . . . . Hacks Repelled . | . . . . . . Allies | -11 -10 -10 -10 -9 -8 -------- Run | Yrd Mat Min Exi Min Mat Total Allies 2 | . . . . . 2 Largest Group 1 | . . . . . 1 Highest-Rated Group 25 | . . . . . 25 Highest-Rated Ally 25 | . . . . . 25 Total Orders . | . . . . . . Ally Attacks 2 | . . . . . 2 Total Damage 15 | . . . . . 15 Kills . | . . . . . . Allies Corrupted . | . . . . . . Allies Melted . | . . . . . . Field Lobotomies 2 | . . . . . 2 Intel | -11 -10 -10 -10 -9 -8 ------- Run | Yrd Mat Min Exi Min Mat Robot Analysis Total . | . . . . . . Derelict Logs Recovered 1 | . . . . 1 . Drone Launches . | . . . . . . Drone Recoveries . | . . . . . . Exploration | -11 -10 -10 -10 -9 -8 ------------- Run | Yrd Mat Min Exi Min Mat Turns Passed 2275 | 54 918 64 189 211 839 Spaces Moved 1648 | 30 637 50 209 222 500 Core 110 | 8 102 . . . . Treads 130 | 22 108 . . . . Legs . | . . . . . . Wheels 924 | . 261 50 209 222 182 Hover 484 | . 166 . . . 318 Flight . | . . . . . . Fastest Speed 50 | 50 90 90 90 90 52 Average Speed 99 | 130 112 90 90 90 88 Slowest Speed 250 | 160 160 90 90 90 250 Overloaded Moves . | . . . . . . Propulsion Burnouts . | . . . . . . Robots Hopped . | . . . . . . Cave-ins Triggered . | . . . . . . Exploration Rate (%) 37 | 3 83 14 40 46 38 Regions Visited 5 Branch Regions 3 Pre-discovered Areas 1 | . . . . 1 . Known Exits Taken . | . . . . . . Unknown Exits Taken 5 | 1 1 1 1 1 . Scrap Searched 1 | . . 1 . . . Spaces Dug . | . . . . . . Terrain Destroyed . | . . . . . . Melee . | . . . . . . Projectile . | . . . . . . AOE . | . . . . . . Terrain Rammed . | . . . . . . Walls Destroyed . | . . . . . . Machines Disabled . | . . . . . . Actions | -11 -10 -10 -10 -9 -8 --------- Run | Yrd Mat Min Exi Min Mat Total 2137 | 45 755 56 209 227 845 Wait 329 | 3 43 . . 3 280 Move 1643 | 29 636 49 208 221 500 Hop . | . . . . . . Pick Up 33 | 7 19 1 1 . 5 Fast Attach 9 | . . . . . 9 Attach 19 | 6 8 . . . 5 Detach 2 | . . . . . 2 Swap 7 | . 3 . . . 4 Drop 17 | . 4 . . . 13 Fire 78 | . 42 6 . 3 27 Melee . | . . . . . . Ram . | . . . . . . Kick . | . . . . . . Crush . | . . . . . . Escape Stasis . | . . . . . . Rewire . | . . . . . . Trap . | . . . . . . Miscellaneous . | . . . . . . Route ------- -11/Scrapyard -10/Materials (discovered 2 exits: [*Mat] / [*Min]) -10/Mines -10/Exiles -9/Mines -8/Materials (discovered 3 exits: Fac x3) History --------- Turn | Location | Event 30 | -11/Scrapyard | Discovered new exit (range 12) 55 | -11/Scrapyard | Entered Materials 321 | -10/Materials | Build established: Mutant 548 | -10/Materials | Core integrity fell below 50% 575 | -10/Materials | Lost 5 parts (1p2n2w) 746 | -10/Materials | Discovered new exit (range 9) 913 | -10/Materials | Discovered new exit (range 15) 973 | -10/Materials | Entered Mines 974 | -10/Mines | Assembled infested the area 987 | -10/Mines | Found a damaged Exp. Sensor Array with a note attached 989 | -10/Mines | Found Prototype Device 1018 | -10/Mines | Core integrity fell below 20% 1033 | -10/Mines | Deemed a non-threat by the Exiles lab entrance 1033 | -10/Mines | Discovered new exit (range 5) 1037 | -10/Mines | Entered Exiles 1058 | -10/Exiles | Met 8R-AWN 1075 | -10/Exiles | Met EX-HEX 1101 | -10/Exiles | Met EX-BIN 1110 | -10/Exiles | Aligned with FarCom system 1111 | -10/Exiles | Given EX-Vault access code 1132 | -10/Exiles | Opened EX-Vault 1138 | -10/Exiles | Found Field Lobotomy Kit 1159 | -10/Exiles | Warned to stay clear of 0b10 Research branches 1216 | -10/Exiles | Discovered new exit (range 14) 1226 | -10/Exiles | Left Exiles lab with Field Lobotomy Kit 1226 | -10/Exiles | Entered Mines 1314 | -9/Mines | Learned Materials garrison access intel 1430 | -9/Mines | Discovered new exit (range 4) 1433 | -9/Mines | Learned location of Storage (-9) 1437 | -9/Mines | Entered Materials 1437 | -8/Materials | Evolved 4 slots: Propulsion x1, Utility x3 1438 | -8/Materials | Loaded intel: 1 garrison access location 1927 | -8/Materials | Build established: Hacker-Mutant 2006 | -8/Materials | Identified exit to Factory 2268 | -8/Materials | Assimilated C-17 Slicer with FLK Orb 2272 | -8/Materials | Assimilated C-17 Slicer with FLK Orb 2276 | -8/Materials | Self-destructed Last Messages --------------- Found 3 level access points to Factory: (55,90) (48,7) (86,88) Map updated. ALERT: Suspicious intruders detected, dispatching Cutter reinforcements to area. Imp. Hover Unit severed. Hvy. Assault Rifle severed. Imp. Hover Unit destroyed. C-17 Slicer assimilated. Hvy. Assault Rifle severed. C-17 Slicer assimilated. C-17 Slicer sneak attacks. Slicer 3b destroyed. Slicer 3a destroyed. Field Lobotomy Kit severed. Acquired 17 matter. Lgt. Nuclear Core severed. Map ----- +----------------------------------------------------+ | ???????# """"" #?????????????????????????????? | | ######## """"" #?????????????????????????????? | | # # """ #?????????????????????????????? | | # # #?????????????????????????????? | | # # #?????????????????????????????? | | # ! #+##+#########?????????????????????????? | | # " # #?????????????????????????? | | # "" # #?????????????????????????? | | # "" + ###########???????????????? | | # """ # [ # #???????????????? | | # "" # [ * # """ """ #???????????????? | | # """ ######## ! # """ """ #???????????????? | | # """ #??????#! # "S """ #???????????????? | | ? """ #??????# # """ #???????????????? | | # " #??????#! ! # "" ! !#???????????????? | | #?? #??????# # #???????????????? | | ????####??????# + ] #???????????????? | | ??????????????# ###########???????????????? | | ?????########## # #???????????????? | | ?????# !! #!!! # #???????????????? | | ?????# !! #! ! # = #???#+###+##????? | | ?????# #=!= # #???# ^ #????? | | ?????# # * #/"""|""" ##### #????? | | ?????# + #*"""g""" + +????? | | ?????# | # #c"""%""" ######## #????? | | ?????#] # #!@cc[!= #?????## ###??? | | ?????# # #####+########## c #??? | | ?????# # #### | | ?????#####+#### | | ?????????# #??# % H | | ########## #??# | | # ## #??# #??? | | # """ ## #######+"############/### #??? | | # """ ## ## ## [ ####+####??? | | # """ # / % ## # T #??? | | # # # !## """ """ + #??? | | # """ # # ## """ """ # """ #??? | | # """ # # """ ## """ """ # """ #??? | | # """ # # """"" ############### """ #??? | | # # # """"" #?????????????# #??? | | # # # """"" #?????????????# """ #??? | | # ! + # """ #?????????????# """ #??? | | ######### #####??###?????????????#! """ #??? | | ??# # #??????????????????????# ???? | | ??# # #??????????????????????? ]?????? | | ??# # #???????????????????????######????? | | ??# # #?????????????????????????????????? | | ??# # ###################???????????????? | | ??### ### ##! [ ## #???????????????? | | ????# ## # ## #???????????????? | +----------------------------------------------------+ Best States ------------- Heat Dissipation 31 Energy Generation 14 Energy Capacity 275 Matter Stores 300 Matter Capacity 300 Sight Range 16 Terrain Scan Density 10 Armor Coverage 150 Evasion (%) 54 Recoil Reduction 2 Offensive Hacking 20 Item Schematics ----------------- None Robot Schematics ------------------ None Fabricated ------------ Nothing Alien Tech Used ----------------- None Achievements -------------- None Challenges ------------ None Game ------ Seed InsulatedTitaniumRail Manual? 0 Play Time 00:17:49 Cumulative 27.4 hours Start 2024.04.30 @ 22:06:12 End 2024.04.30 @ 22:23:52 Sessions 1 Manual Loads 0 Difficulty Rogue Special Mode None Game No. 44 Rogue 42 Adventurer 2 Explorer 0 Win Type - Total 0 Types 0/0/0/0/0/0/0/0/0 Lore% 28 Gallery% 23 Achievement% 21 Wizard Run 0 Options --------- Layout 1 ASCII 0 Keyboard 0 Movement Mouse Keybinds 0 Fullscreen 1 Font 24/Smallcaps Map View 50x40 Zoom Use 0% Tactical HUD 0 Map Filters NONE Filters NONE Steam 1 RUN: 8a2f9612-c0de-4366-86c9-c0247639298c